Cogmind - Beta 17 @@@ ROGUE MODE // 2026.07.07 @ 05:17:18 Player: ChCbias Result: Destroyed by L-31 Rogue with Katana Performance ------------- Evolutions (1) 500 Regions Visited (3) 600 Robots Destroyed (66) 330 Value Destroyed (1692) 1692 Prototype IDs (5) 100 Alien Tech Used (0) 0 Bonus (17) 17 TOTAL SCORE: 3239 Bonus ------- High Alert Combat Kills 17 Cogmind --------- Core Integrity 0/400 Matter 300/300 Energy 280/280 System Corruption 5% Temperature Cool (0) Movement Treading (170) Location -9/Materials Parts ------- > --- POWER (1) -------- Heavy Ion Engine > --- PROPULSION (2) --- Armored Treads Armored Treads > --- UTILITY (3) ------ Heat Sink Improved Heat Sink Large Storage Unit > --- WEAPON (3) ------- (None) > --- INVENTORY (15) --- Armored Treads Armored Treads Compact Wheel Heat Sink Medium Storage Unit Weight Redist. System Experimental Sensor Array Hardened Light Armor Plating Heavy Particle Cannon Heavy Particle Cannon Rocket Launcher Rocket Launcher Datajack Mace Peak State ------------ > --- POWER ------------ Heavy Ion Engine > --- PROPULSION ------- Armored Treads Armored Treads > --- UTILITY ---------- Improved Heat Sink Improved Heat Sink Large Storage Unit > --- WEAPON ----------- Advanced Beam Cannon Advanced Beam Cannon Advanced Beam Cannon > --- INVENTORY -------- Improved Treads Improved Treads Compact Wheel Heat Sink Medium Storage Unit High-capacity Battery Medium Matter Pod Weight Redist. System Experimental Sensor Array Hardened Light Armor Plating Advanced Beam Cannon Rocket Launcher Rocket Launcher Datajack Mace [Rating: 28] Favorites ----------- Power Light Ion Engine Engine Light Ion Engine Power Core Light Nuclear Core Propulsion Light Treads Treads Light Treads Leg Aluminum Leg Wheel Compact Wheel Utility Heat Sink Device Heat Sink Storage Large Storage Unit Hackware Hacking Suite Weapon Advanced Beam Cannon Energy Gun Medium Laser Energy Cannon Advanced Beam Cannon Ballistic Gun Light Assault Rifle Special Melee Weapon Datajack Build | -11 -10 -10 -9 ------- Run | Yrd Mat Min Mat Slots Evolved 2 | . . . 2 Power . | . . . . Propulsion . | . . . . Utility 1 | . . . 1 Weapon 1 | . . . 1 Parts Attached 40 | 6 13 4 17 Power 7 | 1 3 1 2 Engine 6 | 1 2 1 2 Core 1 | . 1 . . Reactor . | . . . . Propulsion 11 | 2 2 1 6 Treads 9 | 2 2 1 4 Leg 1 | . . . 1 Wheel 1 | . . . 1 Hover . | . . . . Flight . | . . . . Utility 11 | 1 4 2 4 Device 7 | . 1 2 4 Storage 3 | 1 2 . . Processor . | . . . . Hackware 1 | . 1 . . Protection . | . . . . Artifact . | . . . . Weapon 11 | 2 4 . 5 Energy Gun 3 | . 3 . . Energy Cannon 5 | . . . 5 Ballistic Gun 2 | 2 . . . Ballistic Cannon . | . . . . Launcher . | . . . . Special Weapon . | . . . . Impact Weapon . | . . . . Slashing Weapon . | . . . . Piercing Weapon . | . . . . Special Melee Weapon 1 | . 1 . . Unidentified Prototypes 3 | . . 1 2 Parts Lost 17 | . 3 5 9 Power 5 | . 3 1 1 Propulsion 4 | . . 2 2 Utility 3 | . . 1 2 Weapon 5 | . . 1 4 Highest Loss Streak 5 | . 1 5 3 To Critical Strikes . | . . . . Average Backups 10 | 3 7 8 13 Power . | . . . . Propulsion 2 | 2 3 2 2 Utility 4 | . 2 4 5 Weapon 2 | . 1 . 4 Tool/Special . | . . . . Unused Backups 19 | . 5 . 14 Power . | . . . . Propulsion 7 | . 3 . 4 Utility 7 | . 2 . 5 Weapon 5 | . . . 5 Tool/Special . | . . . . Average Slot Usage (%) 97 | . 98 82 98 Engine 10 | . 10 3 11 Core 1 | . 3 4 . Treads 23 | . 28 23 19 Device 13 | . 4 10 21 Storage 12 | . 14 14 11 Hackware 3 | . 8 2 . Energy Gun 5 | . 11 18 . Energy Cannon 17 | . . . 31 Ballistic Gun 7 | . 16 3 . Peak Build Rating 28 | 6 12 15 28 Average Rating 16 | 4 8 8 22 On Entrance 7 | . 6 12 10 Avg Prop Armor Cover (%) 7 | . . . 7 Naked Turns . | . . . . Heaviest Build 42 | 10 29 30 42 Greatest Support 46 | 40 40 40 46 Greatest Overweight (x) 12 | . . 1 12 Average Overweight (x) . | . . . . Largest Inventory Capacity 15 | 8 15 15 15 Average Capacity 12 | 7 8 15 15 Most Carried 15 | 6 10 11 15 Average Carried 10 | 3 7 8 13 Final Capacity 15 | 8 15 15 15 Final Carried 14 | 6 10 7 14 Class Distribution -------------------- 46% | Gunner 38% | Mutant 9% | Scavenger-Mutant 5% | Scavenger-Gunner Dominant Class ---------------- Mutant | -10/Materials Mutant | -10/Mines Gunner | -9/Materials Resources | -11 -10 -10 -9 ----------- Run | Yrd Mat Min Mat Matter Collected 888 | 224 396 . 268 Remotely . | . . . . Salvage Created 2296 | . 614 61 1621 Parts 136 | . 43 3 90 Haulers Intercepted 6 | . 1 . 5 Recyclers Shooed . | . . . . Parts Field Recycled . | . . . . Retrieved Matter . | . . . . Parts Self-Destructed . | . . . . Prevented . | . . . . Parts Restored . | . . . . Kills | -11 -10 -10 -9 ------- Run | Yrd Mat Min Mat Combat Hostiles Destroyed 51 | . 15 2 34 Melee 1 | . . 1 . Guns 18 | . 15 1 2 Cannons 32 | . . . 32 Classes Destroyed 9 | . 6 . 3 Worker 2 | . 1 . 1 Hauler 6 | . 1 . 5 Operator 4 | . 2 . 2 Watcher 3 | . 2 . 1 Swarmer 13 | . 6 . 7 Grunt 30 | . 9 2 19 Brawler 2 | . . . 2 Duelist 1 | . . . 1 Sentry 5 | . . . 5 Best Kill Streak 5 | . 4 2 5 Combat Bots Only 4 | . 4 2 4 Max Kills in Single Turn 2 | . 1 1 2 Gunslinging . | . . . . Exploded . | . . . . Melee 1 | . . 1 . Uniques/NPCs Destroyed . | . . . . Combat | -11 -10 -10 -9 -------- Run | Yrd Mat Min Mat Hostile Shots Fired 295 | . 101 28 166 Missed 82 | . 37 3 42 Hits 213 | . 64 25 124 Melee 9 | . . . 9 Projectile 204 | . 64 25 115 AOE 14 | . . 14 . Critical Strikes 4 | . . . 4 Damage Taken 3097 | . 634 716 1747 Core 645 | . 107 124 414 Absorbed by Shields . | . . . . Core Remaining (%) 53 | 100 . 7 . Volleys Fired 166 | . 89 5 72 Largest 3 | . 2 2 3 Hottest 204 | . 100 100 204 Shots Fired 386 | . 178 9 199 Gun 200 | . 178 9 13 Cannon 186 | . . . 186 Launcher . | . . . . Special . | . . . . Kinetic 124 | . 117 . 7 Thermal 262 | . 61 9 192 Explosive . | . . . . Electromagnetic . | . . . . Robot Hit Streak 15 | . 15 4 11 Robot Miss Streak 13 | . 13 1 4 Penetration Max . | . . . . Secondary Targets 4 | . 2 1 1 Max Gunslinging Chain 1 | . 1 1 1 Shots Hit Robots 212 | . 103 7 102 Core Hits 97 | . 40 3 54 Critical Kills 1 | . 1 . . Critical Parts Destroyed . | . . . . Critical Strikes 2 | . 1 1 . Burn 1 | . . 1 . Destroy 1 | . 1 . . Melee Attacks . | . . . . Impact . | . . . . Slashing . | . . . . Piercing . | . . . . Sneak Attacks . | . . . . Combat Hostiles . | . . . . Follow-up Attacks . | . . . . Damage Inflicted 3300 | . 994 104 2202 Guns 1204 | . 994 93 117 Cannons 2063 | . . . 2063 Explosions . | . . . . Melee . | . . . . Ramming 33 | . . 11 22 Kinetic 538 | . 486 . 52 Thermal 2729 | . 508 93 2128 Explosive . | . . . . Electromagnetic . | . . . . Impact . | . . . . Slashing . | . . . . Piercing . | . . . . Highest Corruption 5 | . 4 4 5 Average Corruption 3 | . 1 4 4 Corruption Purged . | . . . . Corruption Blocked . | . . . . Effects 28 | . 6 1 21 Message Errors 7 | . 2 1 4 Matter Fused 6 | . . . 6 Heat Flow Errors 4 | . 2 . 2 Energy Discharges 4 | . 2 . 2 Data Loss (minor) 2 | . . . 2 Misfires 1 | . . . 1 Alerts 2 | . . . 2 Weapon Failures 2 | . . . 2 Overload Shots . | . . . . Overflow Damage 14 | . . . 14 Projectiles 14 | . . . 14 Explosions . | . . . . Melee . | . . . . Knockbacks . | . . . . Impact . | . . . . Kinetic . | . . . . Secondary . | . . . . Self-Inflicted Damage . | . . . . Shots . | . . . . Rammed 19 | . 1 6 12 Targets Rammed 20 | . 1 7 12 Kicked . | . . . . Crushed 1 | . . 1 . Highest Temperature 595 | . 274 272 595 Average Temperature 108 | . 79 149 123 Received Heat Transfer 939 | . 231 96 612 Effects 5 | . . 1 4 Shutdowns 1 | . . . 1 Interference 1 | . . 1 . Damage (minor) 1 | . . . 1 Damage (core) 2 | . . . 2 Siege Activations . | . . . . Martial Activations . | . . . . Shielding Activations . | . . . . Robots Disrupted . | . . . . Combat Hostiles . | . . . . Robots Corrupted . | . . . . Combat Hostiles . | . . . . Parts Fried . | . . . . Impact Corruptions . | . . . . Robots Melted . | . . . . Combat Hostiles . | . . . . Parts Melted 5 | . 3 . 2 Heat Transferred 5373 | . 1266 333 3774 Parts Sabotaged . | . . . . Parts Stolen . | . . . . Parts Stripped . | . . . . Power Chain Reactions . | . . . . Alert | -11 -10 -10 -9 ------- Run | Yrd Mat Min Mat Maximum Alert Level 2 | . . . 2 Low Security (%) 78 | 100 100 100 60 Level 1 17 | . . . 32 Level 2 3 | . . . 6 Level 3 . | . . . . Level 4 . | . . . . Level 5 . | . . . . High Security . | . . . . Max Security . | . . . . Peak Influence 416 | . 110 40 416 Initial . | . . . . Average 110 | . 33 5 180 Influence Increases 1512 | . 454 50 1008 Destroy 0b10 Robot/C 1020 | . 300 40 680 Destroy 0b10 Robot/NC 75 | . 30 . 45 Destroy Leader 238 | . 76 10 152 Successful Hack 41 | . 3 . 38 Disable Machine 30 | . . . 30 Destroy Structure 3 | . . . 3 Lose Combat Pursuer 105 | . 45 . 60 Influence Decreases 1124 | . 451 53 620 Entered New Map 3 | . . 3 . Time Decay 974 | . 421 20 533 Lost Part 147 | . 30 30 87 Squads Dispatched 8 | . 4 . 4 Investigation 3 | . 2 . 1 Extermination . | . . . . Reinforcement 4 | . 2 . 2 Assault 1 | . . . 1 Garrison . | . . . . Intercept . | . . . . Searches Triggered . | . . . . Construction Impeded . | . . . . Haulers Reinforced . | . . . . Active Scanning Responses . | . . . . Cargo Convoy Interrupts . | . . . . Stealth | -11 -10 -10 -9 --------- Run | Yrd Mat Min Mat Distress Signals 3 | . 2 . 1 Communications Jammed . | . . . . Distress Signals . | . . . . Times Spotted 85 | . 36 4 45 Peak Tracking Total 5 | . 4 2 5 Tactical Retreats 5 | . 2 . 3 Traps | -11 -10 -10 -9 ------- Run | Yrd Mat Min Mat Traps Triggered 5 | . 3 . 2 Indirectly . | . . . . Trap Hack Attempts 5 | . 5 . . Triggered . | . . . . Disarmed 7 | . 1 . 6 Reprogrammed . | . . . . Reused . | . . . . Traps Extracted . | . . . . Installed . | . . . . Triggered . | . . . . Machines | -11 -10 -10 -9 ---------- Run | Yrd Mat Min Mat Machines Disabled 2 | . . . 2 Max in Single Turn 1 | . . . 1 Machines Repaired . | . . . . Machines Dismantled . | . . . . Machines Sabotaged . | . . . . Overloaded Fab Kills . | . . . . Hacking | -11 -10 -10 -9 --------- Run | Yrd Mat Min Mat Machines Accessed 15 | . 6 . 9 Terminals 12 | . 5 . 7 Fabricators . | . . . . Repair Stations 1 | . . . 1 Recycling Units 2 | . 1 . 1 Scanalyzers . | . . . . Garrison Access . | . . . . Total Hacks 47 | . 17 . 30 Successful 23 | . 8 . 15 Failed 24 | . 9 . 15 Catastrophic 1 | . . . 1 Database Lockouts . | . . . . Manual 34 | . 16 . 18 Terminals 42 | . 15 . 27 Fabricators . | . . . . Repair Stations 1 | . . . 1 Recycling Units 4 | . 2 . 2 Scanalyzers . | . . . . Garrison Access . | . . . . Terminal Hacks 13 | . 4 . 9 Part Schematic 2 | . 1 . 1 Robot Analysis 2 | . 1 . 1 Prototype ID Bank 1 | . . . 1 Terminal Index 1 | . . . 1 Alert Level 2 | . 1 . 1 Disarm Traps 1 | . . . 1 Hauler Manifests 2 | . 1 . 1 Registered Components 1 | . . . 1 Zone Layout 1 | . . . 1 Fabricator Hacks . | . . . . Repair Station Hacks . | . . . . Recycling Unit Hacks 3 | . 2 . 1 Report Inventory 2 | . 1 . 1 Retrieve Components 1 | . 1 . . Scanalyzer . | . . . . Garrison Access Hacks . | . . . . Unauthorized Hacks 7 | . 2 . 5 Terminals 5 | . 2 . 3 Botnet 5 | . 2 . 3 Fabricators . | . . . . Repair Stations 1 | . . . 1 Mechanics 1 | . . . 1 Recycling Units 1 | . . . 1 Recyclers 1 | . . . 1 Scanalyzers . | . . . . Garrison Access . | . . . . Data Cores Recovered . | . . . . Used . | . . . . Hacking Detections 12 | . 5 . 7 Full Trace Events 9 | . 3 . 6 Feedback Events 1 | . . . 1 Corruption 1 | . . . 1 Feedback Blocked . | . . . . Robot Schematics Acquired . | . . . . Robots Built . | . . . . Authchips . | . . . . Time . | . . . . Total Robot Build Rating . | . . . . Part Schematics Acquired 2 | . 1 . 1 Parts Built . | . . . . Authchips . | . . . . Time . | . . . . Total Part Build Rating . | . . . . Part Studies Acquired . | . . . . Parts Repaired . | . . . . Time . | . . . . Parts Recycled . | . . . . Recycled Matter . | . . . . Retrieved Matter . | . . . . Retrieved Components 9 | . 9 . . Parts Scanalyzed . | . . . . Part Schematics Acquired . | . . . . Parts Damaged . | . . . . Bothacking | -11 -10 -10 -9 ------------ Run | Yrd Mat Min Mat Used RIF Installer . | . . . . Robots Hacked . | . . . . Non-combat . | . . . . Combat . | . . . . Robot Hacks Applied . | . . . . Relay Couplers Released . | . . . . Fabnet Peak Effective % . | . . . . Robots Rewired . | . . . . Allies Hacked . | . . . . Hacks Repelled . | . . . . Allies | -11 -10 -10 -9 -------- Run | Yrd Mat Min Mat Total Allies . | . . . . Largest Group . | . . . . Highest-Rated Group . | . . . . Highest-Rated Ally . | . . . . Total Orders . | . . . . Ally Attacks . | . . . . Total Damage . | . . . . Kills . | . . . . Allies Corrupted . | . . . . Allies Melted . | . . . . Intel | -11 -10 -10 -9 ------- Run | Yrd Mat Min Mat Active Infowar (turns) 1 | . . 1 . Sensors 1 | . . 1 . Robot Analysis Total 2 | . 1 . 1 Derelict Logs Recovered . | . . . . Drone Launches . | . . . . Drone Recoveries . | . . . . Exploration | -11 -10 -10 -9 ------------- Run | Yrd Mat Min Mat Turns Passed 3365 | 87 1338 138 1802 Spaces Moved 1550 | 47 650 53 800 Core 3 | 2 . . 1 Treads 1440 | 45 650 53 692 Legs . | . . . . Wheels 107 | . . . 107 Hover . | . . . . Flight . | . . . . Fastest Speed 50 | 50 160 160 115 Average Speed 171 | 155 160 187 180 Slowest Speed 650 | 160 160 240 650 Overloaded Moves . | . . . . Propulsion Burnouts . | . . . . Robots Hopped . | . . . . Potential Cave-ins . | . . . . Cave-ins Triggered . | . . . . Exploration Rate (%) 39 | 3 82 8 64 Regions Visited 3 Branch Regions 1 Pre-discovered Areas . | . . . . Known Exits Taken . | . . . . Unknown Exits Taken 3 | 1 1 1 . Scrap Searched . | . . . . Spaces Dug . | . . . . Terrain Destroyed . | . . . . Melee . | . . . . Projectile . | . . . . AOE . | . . . . Terrain Rammed . | . . . . Walls Destroyed . | . . . . Machines Disabled . | . . . . Actions | -11 -10 -10 -9 --------- Run | Yrd Mat Min Mat Total 1921 | 58 791 76 996 Wait 77 | . 13 2 62 Move 1547 | 46 649 52 800 Hop . | . . . . Pick Up 31 | 6 8 2 15 Fast Attach 25 | 6 5 . 14 Attach 11 | . 1 5 5 Detach 4 | . 1 . 3 Swap 13 | . 10 3 . Drop 22 | . 9 . 13 Fire 166 | . 89 5 72 Melee . | . . . . Ram . | . . . . Kick . | . . . . Crush 20 | . 1 7 12 Escape Stasis . | . . . . Rewire . | . . . . Trap 5 | . 5 . . Miscellaneous . | . . . . Route ------- -11/Scrapyard -10/Materials (discovered 5 exits: *Mat x3 / [*Min] / [*Sub]) -10/Mines -9/Materials (discovered 4 exits: [*Mat x2] / [*Min] / [*Sto]) History --------- Turn | Location | Event 43 | -11/Scrapyard | Discovered new exit (range 15) 88 | -11/Scrapyard | Entered Materials 223 | -10/Materials | Discovered new exit (range 9) 304 | -10/Materials | Build established: Mutant 370 | -10/Materials | Discovered new exit (range 12) 487 | -10/Materials | Discovered new exit (range 14) 1009 | -10/Materials | Discovered new exit (range 3) 1179 | -10/Materials | Discovered new exit (range 8) 1420 | -10/Materials | Build established: Scavenger-Mutant 1426 | -10/Materials | Entered Mines 1444 | -10/Mines | Discovered new exit (range 12) 1457 | -10/Mines | Assembled infested the area 1467 | -10/Mines | Core integrity fell below 50% 1471 | -10/Mines | Core integrity fell below 20% 1507 | -10/Mines | Lost 5 parts (1p2n1u1w) 1542 | -10/Mines | Found a damaged Exp. Sensor Array with a note attached 1545 | -10/Mines | Found Prototype Device 1561 | -10/Mines | Identified Exp. Sensor Array 1564 | -10/Mines | Entered Materials 1564 | -9/Materials | Evolved 2 slots: Utility x1, Weapon x1 1628 | -9/Materials | Lost 3 parts (2n1w) 2072 | -9/Materials | Build established: Gunner 2164 | -9/Materials | Discovered new exit (range 6) 2193 | -9/Materials | Discovered new exit (range 10) 2453 | -9/Materials | Discovered new exit (range 16) 2755 | -9/Materials | Core integrity fell below 50% 2864 | -9/Materials | Discovered new exit (range 16) 3164 | -9/Materials | First assault squad dispatched 3362 | -9/Materials | Core integrity fell below 20% 3366 | -9/Materials | Destroyed by L-31 Rogue with Katana Last Messages --------------- 03331_ L-31 Rogue unfolds itself. 03331_ G-34 Mercenary unfolds itself. 03331_ I-25 Savior unfolds itself. 03333_ B-36 Bruiser destroyed. 03334_ R-06 Scavenger collects Lgt. Armor Plating. 03341_ R-06 Scavenger collects Wheel. 03346_ Adv. Beam Cannon destroyed. 03346_ Slammed into L-31 Rogue. 03354_ K-01 Serf collects debris. 03355_ Slammed into L-31 Rogue. 03355_ Adv. Beam Cannon destroyed. 03357_ Slammed into L-31 Rogue. 03359_ K-01 Serf collects debris. 03359_ Adv. Beam Cannon severed. 03360_ Slammed into L-31 Rogue. 03361_ K-01 Serf collects debris. 03362_ Slammed into L-31 Rogue. 03364_ K-01 Serf collects debris. 03365_ Slammed into L-31 Rogue. Map ----- +----------------------------------------------------+ | # #?????????????????????? | | %% % # """""#?????????????????????? | | +##############%% # """""#?????????????????????? | | ???# # # """""#?????????????????????? | | "???# """" # # """""#?????????????????????? | | ""??# """" + + """""#?????????????????????? | | ??? """" # # """""#?????????????????????? | | ?# # # """""??????????????????????? | | ?# """ # # ??????????????????????? | | ###### """" # ##########????????????#####????? | | ?????# """" # #??????????????######?# #????? | | ?????# # #??????????????# T # < #????? | | ???????######## #??????????????# # #????? | | ??????????????# #??????????????# """" + #????? | | ??????????????# #??????????????# """" # #????? | | ??????????????# #??????????????? """" # #????? | | ??????????????# #??????????????? ?# #????? | | ??????????????# %#########?????######### = #????? | | ??????????????# ## =!!??????# ## % #????? | | ??????????????# ## =!!??????# """## = #????? | | ??????????????# ## !! #?????# """## ###### | | ??????????????# ## #?????# """## ## = | | ??????????????# ## ??????# ## ## | | ?????????????## ## ?????????] ## ## "" | | ?????????????# ###i#############+### # "" | | ???+ #### % k /%! g@l%% % # "" | | ???# + T % %%%% %% T # | | ???# [ #### g r% % % #?#+# | | ???####??????# ###+###k ########### #?# | | ?????????????## ### # #?????????#######?# | | ??????????????# #?# # #?????????????????# | | ??????????????# #?# # ###############???# | | ??????????????# #?# # #???# | | ??????????????# ^^#?# # = ##### | | ??????????????# #?# # *%= | | ??????????????# #?# #######+########+######+# | | ??????????????# #?# #?# = % # ] # | | ??????????????# #?# #?# * # # | | ??????????????# #?######?# # # """ | | ??????????????# #????????# """ # """ """ # """ | | ??????????????# #????????# """ # """ """ # """ | | ??????????????# #????????# """ # """ """ # | | ??????????????# ########?# # ##### | | ??????????????# r# #?# """ # #???? | | ??????????????# # #?# """ ###########???? | | ??????????????# # ""#?# ???? #?????????????? | | ??????????????# + T"#?# ???? #?????????????? | | ??????????????# # ""#?##?????##?????????????? | | ??????????????# # #???????????????????????? | | ??????????????# ########???????????????????????? | +----------------------------------------------------+ Best States ------------- Heat Dissipation 56 Energy Generation 14 Energy Capacity 280 Matter Stores 300 Matter Capacity 300 Sight Range 16 Terrain Scan Density 10 Evasion (%) 40 Recoil Reduction 2 Offensive Hacking 10 Item Schematics ----------------- Lgt. Treads | -10/Materials | Hacked Imp. Treads | -9/Materials | Hacked Robot Schematics ------------------ None Fabricated ------------ Nothing Repaired ---------- Nothing Studied --------- None Alien Tech Used ----------------- None Achievements -------------- None Challenges ------------ None Game ------ Seed DrainedRingCrosscalibrator Manual? 0 Play Time 00:30:13 Cumulative 33.3 hours Start 2026.07.07 @ 04:35:22 End 2026.07.07 @ 05:17:18 Sessions 1 Manual Loads 0 Difficulty Rogue Special Mode None Game No. 26 Rogue 26 Adventurer 0 Explorer 0 Win Type - Total 0 Types 0/0/0/0/0/0/0/0/0/0 Lore% 26 Gallery% 25 Achievement% 26 Wizard Run 0 Options --------- Layout 1 ASCII 0 Keyboard 0 Movement Mouse Keybinds 0 Fullscreen 1 Font 24/Smallcaps Map View 50x35 Zoom Use 0% Tactical HUD 1 Map Filters NONE Filters NONE Steam 1 RUN: 0d35c186-e759-4722-a3ec-a9f048a2bf15